fUST/lending_fUST_20250613
["ID","MTS","AMOUNT","RATE_DAILY","PERIOD"]
[365656131,1749822634211,-151.0,0.00021122,2]
[365656132,1749822634220,-203.10257737,0.00021149,4]
[365656133,1749822634230,-151.74120087,0.00021149,4]
[365656134,1749822634239,-513.35624663,0.00021149,4]
[365656135,1749822634249,-153.80660158,0.00021149,4]
[365656136,1749822634258,-264.19780354,0.00021149,4]
[365656137,1749822634268,-156.96786638,0.00021149,4]
[365656138,1749822634279,-200.48626759,0.00021149,4]
[365656139,1749822634290,-576.16104901,0.00021176,4]
[365656140,1749822634299,-940.76013488,0.00021267,2]
[365656141,1749822634419,-435.8497436,0.00021268,2]
[365656142,1749822634432,-576.16104901,0.00021314,5]
[365656143,1749822634442,-252.71330714,0.00021352,2]
[365656144,1749822634452,-500.0,0.00021352,2]
[365656145,1749822634462,-170.19542188,0.00021352,2]
[365656146,1749822634472,-500.0,0.00021352,2]
[365656147,1749822634482,-331.51998423,0.00021352,2]
[365656148,1749822634492,-500.0,0.00021358,2]
[365656149,1749822634502,-480.36,0.00021359,3]
[365656150,1749822634512,-240.18,0.00021359,3]
[365656151,1749822634521,-720.54,0.00021359,3]
[365656152,1749822634532,-167.68,0.00021366,2]
[365656153,1749822634543,-370.0,0.00021367,4]
[365656154,1749822634554,-420.0,0.00021367,4]
[365656155,1749822634563,-420.0,0.00021367,4]
[365656156,1749822634574,-487.63070471,0.00021367,4]
[365656157,1749822634584,-420.0,0.00021367,4]
[365656158,1749822634594,-440.0,0.00021367,4]
[365656159,1749822634603,-420.0,0.00021367,4]
[365656160,1749822634613,-344.58819649,0.00021367,2]
[365656161,1749822634623,-440.0,0.00021367,4]
[365656162,1749822634633,-460.0,0.00021367,4]
[365656163,1749822634643,-420.0,0.00021367,4]
[365656164,1749822634653,-460.0,0.00021367,4]
[365656165,1749822634663,-460.0,0.00021367,4]
[365656166,1749822634675,-460.0,0.00021367,4]
[365656167,1749822634694,-420.0,0.00021367,4]
[365656168,1749822634705,-170.21566736,0.00021367,4]
[365656169,1749822634715,-460.0,0.00021367,4]
[365656170,1749822634724,-460.0,0.00021367,4]
[365656171,1749822634733,-422.58745322,0.00021367,4]
[365656172,1749822634743,-420.0,0.00021367,4]
[365656173,1749822634752,-214.65348253,0.00021367,4]
[365656174,1749822634762,-460.0,0.00021367,4]
[365656175,1749822634772,-160.70964752,0.00021367,4]
[365656176,1749822634834,-299.29035248,0.00021367,4]
[365656177,1749822634844,-395.71469136,0.00021367,4]
[365656178,1749822634856,-24.28530864,0.00021367,4]
[365656179,1749822634866,-231.25863601,0.00021367,4]
[365656180,1749822634876,-460.0,0.00021367,4]
[365656181,1749822634885,-420.0,0.00021367,4]
[365656182,1749822634895,-460.0,0.00021367,4]
[365656183,1749822634904,-38.50052185,0.00021367,4]
[365656184,1749822634917,-421.49947815,0.00021367,4]
[365656185,1749822634927,-460.0,0.00021367,4]
[365656186,1749822634936,-460.0,0.00021367,4]
[365656187,1749822634946,-460.0,0.00021367,4]
[365656188,1749822634956,-460.0,0.00021367,4]
[365656189,1749822634965,-460.0,0.00021367,4]
[365656190,1749822634975,-460.0,0.00021367,4]
[365656191,1749822634984,-460.0,0.00021367,4]
[365656192,1749822634999,-357.97977024,0.00021367,4]
[365656249,1749822638554,-460.0,0.00021095,4]
[365656251,1749822638564,-500.0,0.00021122,4]
[365656253,1749822638573,-516.08885785,0.00021149,4]
[365656255,1749822638583,-102.02022976,0.00021367,4]
[365656257,1749822638592,-460.0,0.00021367,4]
[365656259,1749822638603,-460.0,0.00021367,4]
[365656261,1749822638613,-460.0,0.00021367,4]
[365656263,1749822638622,-431.02982276,0.00021367,4]
[365656265,1749822638632,-500.0,0.00021367,4]
[365656267,1749822638641,-420.0,0.00021367,4]
[365656269,1749822638651,-460.0,0.00021367,4]
[365656271,1749822638660,-460.0,0.00021367,4]
[365656274,1749822638670,-1000.0,0.00021367,4]
[365656276,1749822638679,-440.0,0.00021367,4]
[365656278,1749822638691,-460.0,0.00021367,4]
[365656280,1749822638701,-460.0,0.00021367,4]
[365656282,1749822638711,-460.0,0.00021367,4]
[365656283,1749822638720,-484.002741,0.00021367,4]
[365656285,1749822638730,-480.0,0.00021367,4]
[365656287,1749822638739,-390.0,0.00021367,4]
[365656289,1749822638748,-460.0,0.00021367,4]
[365656291,1749822638758,-413.15822267,0.00021367,4]
[365656293,1749822638768,-159.39929833,0.00021367,4]
[365656295,1749822638777,-460.0,0.00021367,4]
[365656297,1749822638787,-460.0,0.00021367,4]
[365656299,1749822638799,-420.0,0.00021367,4]
[365656300,1749822638808,-460.0,0.00021367,4]
[365656301,1749822638819,-460.0,0.00021367,4]
[365656302,1749822638828,-460.0,0.00021367,4]
[365656303,1749822638839,-522.73658176,0.00021367,4]
[365656304,1749822638848,-430.0,0.00021367,4]
[365656306,1749822638858,-153.88305048,0.00021367,4]
[365656308,1749822638871,-306.11694952,0.00021367,4]
[365656309,1749822638880,-21.08305048,0.00021367,4]
[365656555,1749822643413,-420.0,0.00021095,4]
[365656557,1749822643423,-1078.58,0.00021095,4]
[365656559,1749822643432,-420.0,0.00021095,4]
[365656561,1749822643442,-460.0,0.00021095,4]
[365656563,1749822643452,-420.0,0.00021095,4]
[365656565,1749822643462,-401.59048933,0.00021367,4]
[365656567,1749822643472,-460.0,0.00021367,4]
[365656569,1749822643481,-420.0,0.00021367,4]
[365656571,1749822643491,-420.0,0.00021367,4]
[365656573,1749822643500,-460.0,0.00021367,4]
[365656575,1749822643510,-543.86578855,0.00021367,4]
[365656577,1749822643519,-460.0,0.00021367,2]
[365656579,1749822643529,-460.0,0.00021367,4]
[365656581,1749822643539,-460.0,0.00021367,4]
[365656583,1749822643550,-460.0,0.00021367,4]
[365656585,1749822643560,-460.0,0.00021367,4]
[365656587,1749822643569,-460.0,0.00021367,4]
[365656589,1749822643579,-534.42149569,0.00021367,4]
[365656591,1749822643588,-460.0,0.00021367,4]
[365656593,1749822643597,-440.0,0.00021367,4]
[365656595,1749822643606,-460.0,0.00021367,4]
[365656597,1749822643617,-460.0,0.00021367,4]
[365656599,1749822643626,-460.0,0.00021367,4]
[365656601,1749822643635,-480.0,0.00021367,4]
[365656602,1749822643644,-460.0,0.00021367,4]
[365656604,1749822643654,-460.0,0.00021367,4]
[365656607,1749822643664,-460.0,0.00021367,4]
[365656609,1749822643673,-460.0,0.00021367,4]
[365656610,1749822643683,-460.0,0.00021367,4]
[365656613,1749822643697,-475.20554339,0.00021367,4]
[365656614,1749822643707,-440.0,0.00021367,4]
[365656617,1749822643716,-420.0,0.00021367,4]
[365656619,1749822643727,-460.0,0.00021367,4]
[365656621,1749822643736,-159.28433833,0.00021367,4]
[365656623,1749822643746,-460.0,0.00021367,4]
[365656625,1749822643756,-460.0,0.00021367,4]
[365656627,1749822643766,-440.0,0.00021367,4]
[365656629,1749822643775,-440.0,0.00021367,4]
[365656631,1749822643785,-460.0,0.00021367,4]
[365656633,1749822643794,-460.0,0.00021367,4]
[365656634,1749822643806,-460.0,0.00021367,4]
[365656637,1749822643816,-460.0,0.00021367,4]
[365656638,1749822643825,-460.0,0.00021367,4]
[365656640,1749822643835,-460.0,0.00021367,4]
[365656642,1749822643848,-460.0,0.00021367,4]
[365656644,1749822643862,-460.0,0.00021367,4]
[365656647,1749822643873,-460.0,0.00021367,4]
[365656648,1749822643883,-460.0,0.00021367,4]
[365656651,1749822643894,-440.0,0.00021367,4]
[365656652,1749822643903,-460.0,0.00021367,4]
[365656654,1749822643913,-209.35271618,0.00021367,4]
[365656656,1749822643923,-460.0,0.00021367,4]
[365656659,1749822643933,-460.0,0.00021367,4]
[365656661,1749822643943,-460.0,0.00021367,4]
[365656662,1749822643952,-460.0,0.00021367,4]
[365656665,1749822643962,-460.0,0.00021367,4]
[365656667,1749822643972,-1294.62,0.00021367,4]
[365656668,1749822643981,-500.0,0.00021368,2]
[365656670,1749822643992,-500.0,0.00021368,2]
[365656672,1749822644003,-490.0688382,0.00021368,2]
[365656674,1749822644012,-177.60918541,0.00021368,2]
[365656677,1749822644022,-500.0,0.00021368,2]
[365656678,1749822644031,-500.0,0.00021368,2]
[365656680,1749822644041,-420.0,0.00021369,4]
[365656682,1749822644053,-460.0,0.00021369,4]
[365656695,1749822644165,-420.0,0.00021369,4]
[365656697,1749822644174,-420.0,0.00021369,4]
[365656699,1749822644184,-460.0,0.00021369,4]
[365656701,1749822644193,-460.0,0.00021369,4]
[365656703,1749822644203,-400.0,0.00021369,4]
[365656705,1749822644212,-348.82080039,0.00021369,4]
[365656707,1749822644222,-460.0,0.00021369,4]
[365656709,1749822644231,-460.0,0.00021369,4]
[365656711,1749822644240,-262.24,0.00021369,4]
[365656713,1749822644250,-420.0,0.00021369,4]
[365656715,1749822644259,-460.0,0.00021369,4]
[365656717,1749822644268,-420.0,0.00021369,4]
[365656719,1749822644277,-469.40458389,0.00021369,4]
[365656721,1749822644287,-420.0,0.00021369,4]
[365656723,1749822644296,-460.0,0.00021369,4]
[365656725,1749822644307,-420.0,0.00021369,4]
[365656727,1749822644316,-420.0,0.00021369,4]
[365656729,1749822644326,-400.0,0.00021369,4]
[365656731,1749822644335,-420.0,0.00021369,4]
[365656733,1749822644345,-420.0,0.00021369,4]
[365656735,1749822644355,-544.96,0.00021369,4]
[365656737,1749822644364,-420.0,0.00021369,4]
[365656739,1749822644373,-420.0,0.00021369,4]
[365656741,1749822644382,-460.0,0.00021369,4]
[365656743,1749822644391,-559.87689554,0.00021369,4]
[365656745,1749822644400,-420.0,0.00021369,4]
[365656747,1749822644410,-420.0,0.00021369,4]
[365656749,1749822644419,-420.0,0.00021369,4]
[365656751,1749822644428,-420.0,0.00021369,4]
[365656753,1749822644437,-420.0,0.00021369,4]
[365656755,1749822644446,-420.0,0.00021369,4]
[365656757,1749822644456,-420.0,0.00021369,4]
[365656759,1749822644466,-678.25,0.00021369,4]
[365656761,1749822644475,-460.0,0.00021369,4]
[365656764,1749822644484,-420.0,0.00021369,4]
[365656766,1749822644493,-420.0,0.00021369,4]
[365656767,1749822644503,-420.0,0.00021369,4]
[365656769,1749822644512,-530.0,0.00021369,4]
[365656772,1749822644521,-420.0,0.00021369,4]
[365656773,1749822644531,-892.67,0.00021369,4]
[365656775,1749822644540,-420.0,0.00021369,4]
[365656778,1749822644551,-420.0,0.00021369,4]
[365656779,1749822644560,-420.0,0.00021369,4]
[365656781,1749822644569,-460.0,0.00021369,4]
[365656783,1749822644579,-420.0,0.00021369,4]
[365656785,1749822644588,-886.49,0.00021369,4]
[365656788,1749822644597,-460.0,0.00021369,4]
[365656790,1749822644607,-420.0,0.00021369,4]
[365656792,1749822644616,-410.0,0.00021369,4]
[365656794,1749822644625,-460.0,0.00021369,4]
[365656795,1749822644634,-300.0,0.00021369,4]
[365656798,1749822644644,-390.0,0.00021369,4]
[365656800,1749822644653,-420.0,0.00021369,4]
[365656802,1749822644662,-370.0,0.00021369,4]
[365656804,1749822644671,-55.71919927,0.00021369,4]
[365656806,1749822644684,-544.28080073,0.00021369,4]
[365656808,1749822644699,-533.6,0.00021369,4]
[365656810,1749822644709,-420.0,0.00021369,4]
[365656812,1749822644719,-420.0,0.00021369,4]
[365656814,1749822644728,-460.0,0.00021369,4]
[365656817,1749822644738,-420.0,0.00021369,4]
[365656819,1749822644748,-460.0,0.00021369,4]
[365656821,1749822644759,-420.0,0.00021369,4]
[365656822,1749822644771,-420.0,0.00021369,4]
[365656825,1749822644782,-420.0,0.00021369,4]
[365656826,1749822644791,-420.0,0.00021369,4]
[365656828,1749822644801,-360.0,0.00021369,4]
[365656830,1749822644810,-208.62658928,0.00021369,4]
[365656832,1749822644820,-420.0,0.00021369,4]
[365656835,1749822644830,-389.08174055,0.00021369,4]
[365656837,1749822644839,-460.0,0.00021369,4]
[365656838,1749822644849,-1608.1,0.00021369,4]
[365656841,1749822644859,-349.7844317,0.00021369,4]
[365656843,1749822644871,-82.41823623,0.00021369,4]
[365656845,1749822644880,-460.0,0.00021369,4]
[365656847,1749822644889,-460.0,0.00021369,4]
[365656849,1749822644898,-420.0,0.00021369,4]
[365656851,1749822644907,-420.0,0.00021369,4]
[365656853,1749822644917,-164.96590576,0.00021369,4]
[365657003,1749822646591,-0.07304448,0.00021095,4]
[365657004,1749822646604,-459.92695552,0.00021095,4]
[365657005,1749822646614,-295.03409424,0.00021369,4]
[365657006,1749822646625,-420.0,0.00021369,4]
[365657007,1749822646635,-370.0,0.00021369,4]
[365657009,1749822646645,-460.0,0.00021369,4]
[365657010,1749822646656,-420.0,0.00021369,4]
[365657012,1749822646667,-420.0,0.00021369,4]
[365657014,1749822646678,-460.0,0.00021369,4]
[365657016,1749822646692,-508.08,0.00021369,4]
[365657018,1749822646703,-757.96,0.00021369,4]
[365657020,1749822646714,-460.0,0.00021369,4]
[365657022,1749822646724,-410.0,0.00021369,4]
[365657024,1749822646735,-460.0,0.00021369,4]
[365657026,1749822646746,-420.0,0.00021369,4]
[365657028,1749822646757,-780.44,0.00021369,4]
[365657030,1749822646769,-555.46,0.00021369,4]
[365657032,1749822646780,-460.0,0.00021369,4]
[365657034,1749822646791,-420.0,0.00021369,4]
[365657036,1749822646804,-460.0,0.00021369,4]
[365657038,1749822646820,-420.0,0.00021369,4]
[365657039,1749822646830,-460.0,0.00021369,4]
[365657041,1749822646840,-420.0,0.00021369,4]
[365657043,1749822646851,-420.0,0.00021369,4]
[365657045,1749822646861,-1078.58,0.00021369,4]
[365657047,1749822646871,-420.0,0.00021369,4]
[365657049,1749822646882,-400.0,0.00021369,4]
[365657051,1749822646893,-264.26418439,0.00021373,2]
[365657053,1749822646903,-576.16104901,0.00021452,5]
[365657055,1749822646914,-154.87143591,0.00021548,2]
[365657057,1749822646924,-500.0,0.00021548,2]
[365657059,1749822646934,-576.16104901,0.0002159,5]
[365657061,1749822646944,-3272.33592988,0.00021629,2]
[365657063,1749822646955,-420.0,0.00021636,2]
[365657066,1749822646966,-460.0,0.00021641,4]
[365657068,1749822646977,-334.30248696,0.00021641,4]
[365657069,1749822646987,-460.0,0.00021641,4]
[365657071,1749822646997,-420.0,0.00021641,4]
[365657074,1749822647008,-400.0,0.00021641,4]
[365657075,1749822647017,-329.95827375,0.00021641,4]
[365657077,1749822647027,-460.0,0.00021641,4]
[365657079,1749822647037,-290.89490882,0.00021641,4]
[365657081,1749822647047,-420.0,0.00021641,4]
[365657083,1749822647061,-460.0,0.00021641,4]
[365657085,1749822647071,-460.0,0.00021641,4]
[365657087,1749822647081,-460.0,0.00021641,4]
[365657089,1749822647090,-460.0,0.00021641,4]
[365657091,1749822647101,-460.0,0.00021641,4]
[365657093,1749822647111,-460.0,0.00021641,4]
[365657095,1749822647120,-460.0,0.00021641,4]
[365657097,1749822647130,-460.0,0.00021641,4]
[365657099,1749822647139,-420.0,0.00021641,4]
[365657101,1749822647148,-420.0,0.00021641,4]
[365657103,1749822647158,-460.0,0.00021641,4]
[365657105,1749822647167,-500.0,0.00021641,4]
[365657107,1749822647176,-460.0,0.00021641,4]
[365657109,1749822647186,-460.0,0.00021641,4]
[365657111,1749822647195,-460.0,0.00021641,4]
[365657113,1749822647205,-460.0,0.00021641,4]
[365657115,1749822647215,-460.0,0.00021641,4]
[365657117,1749822647224,-169.97711309,0.00021641,4]
[365657119,1749822647233,-477.9328961,0.00021641,4]
[365657121,1749822647243,-420.0,0.00021641,4]
[365657123,1749822647253,-460.0,0.00021641,4]
[365657125,1749822647263,-420.0,0.00021641,4]
[365657127,1749822647273,-420.0,0.00021641,4]
[365657129,1749822647282,-420.0,0.00021641,4]
[365657131,1749822647291,-420.0,0.00021641,4]
[365657133,1749822647301,-390.0,0.00021641,4]
[365657135,1749822647312,-460.0,0.00021641,2]
[365657137,1749822647321,-460.0,0.00021641,4]
[365657138,1749822647331,-420.0,0.00021641,4]
[365657140,1749822647341,-166.7482233,0.00021641,4]
[365657142,1749822647350,-420.0,0.00021641,4]
[365657144,1749822647360,-362.38669819,0.00021641,4]
[365657146,1749822647370,-420.0,0.00021641,4]
[365657148,1749822647380,-420.0,0.00021641,4]
[365657150,1749822647390,-420.0,0.00021641,4]
[365657152,1749822647400,-420.0,0.00021641,4]
[365657154,1749822647409,-413.49715802,0.00021641,4]
[365657156,1749822647419,-370.0,0.00021641,4]
[365657158,1749822647428,-370.0,0.00021641,4]
[365657160,1749822647437,-370.0,0.00021641,4]
[365657162,1749822647446,-420.0,0.00021641,4]
[365657164,1749822647455,-460.0,0.00021641,4]
[365657166,1749822647465,-460.0,0.00021641,4]
[365657168,1749822647474,-420.0,0.00021641,4]
[365657170,1749822647483,-420.0,0.00021641,4]
[365657172,1749822647494,-460.0,0.00021641,4]
[365657175,1749822647504,-420.0,0.00021641,4]
[365657176,1749822647514,-460.0,0.00021641,4]
[365657179,1749822647525,-460.0,0.00021641,4]
[365657181,1749822647535,-460.0,0.00021641,4]
[365657183,1749822647544,-460.0,0.00021641,4]
[365657185,1749822647556,-420.0,0.00021641,4]
[365657187,1749822647565,-460.0,0.00021641,4]
[365657189,1749822647574,-460.0,0.00021641,4]
[365657190,1749822647584,-460.0,0.00021641,4]
[365657192,1749822647593,-420.0,0.00021641,4]
[365657194,1749822647603,-460.0,0.00021641,4]
[365657196,1749822647614,-420.0,0.00021641,4]
[365657198,1749822647623,-460.0,0.00021641,4]
[365657200,1749822647634,-420.0,0.00021641,4]
[365657202,1749822647644,-1294.62,0.00021641,4]
[365657204,1749822647654,-400.0,0.00021643,4]
[365657206,1749822647663,-400.0,0.00021643,4]
[365657208,1749822647673,-244.318764,0.00021643,4]
[365657210,1749822647683,-426.90070196,0.00021643,4]
[365657212,1749822647695,-400.0,0.00021643,4]
[365657215,1749822647705,-400.0,0.00021643,4]
[365657216,1749822647715,-290.0,0.00021643,4]
[365657228,1749822647821,-460.0,0.00021643,4]
[365657230,1749822647831,-678.25,0.00021643,4]
[365657232,1749822647841,-460.0,0.00021643,4]
[365657233,1749822647851,-892.67,0.00021643,4]
[365657235,1749822647860,-460.0,0.00021643,4]
[365657237,1749822647870,-886.49,0.00021643,4]
[365657239,1749822647880,-460.0,0.00021643,4]
[365657241,1749822647890,-460.0,0.00021643,4]
[365657243,1749822647899,-313.4,0.00021643,4]
[365657245,1749822647909,-460.0,0.00021643,4]
[365657247,1749822647919,-156.02,0.00021643,4]
[365657249,1749822647928,-1608.1,0.00021643,4]
[365657251,1749822647938,-460.0,0.00021643,4]
[365657253,1749822647948,-153.54,0.00021643,4]
[365657255,1749822647957,-215.8,0.00021643,4]
[365657257,1749822647967,-460.0,0.00021643,4]
[365657259,1749822647976,-287.2,0.00021643,4]
[365657261,1749822647986,-757.96,0.00021643,4]
[365657263,1749822647996,-460.0,0.00021643,4]
[365657265,1749822648005,-460.0,0.00021643,4]
[365657267,1749822648014,-780.44,0.00021643,4]
[365657269,1749822648024,-555.46,0.00021643,4]
[365657271,1749822648035,-400.0,0.00021643,4]
[365657273,1749822648045,-400.0,0.00021643,4]
[365657275,1749822648058,-400.0,0.00021643,4]
[365657277,1749822648068,-1078.58,0.00021643,4]
[365657279,1749822648078,-576.16104901,0.00021728,5]
[365657281,1749822648088,-364.0,0.00021735,2]
[365657283,1749822648099,-460.48953065,0.00021738,2]
[365657285,1749822648110,-576.16104901,0.00021866,6]
[365657287,1749822648120,-940.76013486,0.00021875,2]
[365657289,1749822648130,-400.0,0.00021915,4]
[365657291,1749822648141,-320.0,0.00021915,4]
[365657293,1749822648151,-400.0,0.00021915,4]
[365657295,1749822648161,-400.0,0.00021915,4]
[365657297,1749822648170,-400.0,0.00021915,4]
[365657299,1749822648181,-400.0,0.00021915,4]
[365657301,1749822648191,-400.0,0.00021915,4]
[365657303,1749822648201,-400.0,0.00021915,4]
[365657305,1749822648211,-400.0,0.00021915,4]
[365657307,1749822648221,-400.0,0.00021915,4]
[365657309,1749822648231,-400.0,0.00021915,4]
[365657311,1749822648240,-377.39884703,0.00021915,4]
[365657313,1749822648250,-500.0,0.00021915,4]
[365657315,1749822648260,-589.3,0.00021915,4]
[365657317,1749822648270,-400.0,0.00021915,4]
[365657319,1749822648280,-415.72,0.00021915,4]
[365657321,1749822648290,-420.0,0.00021915,4]
[365657323,1749822648300,-400.0,0.00021915,4]
[365657325,1749822648314,-400.0,0.00021915,4]
[365657327,1749822648324,-460.0,0.00021915,2]
[365657329,1749822648335,-460.0,0.00021915,4]
[365657331,1749822648346,-400.0,0.00021915,4]
[365657333,1749822648356,-511.21138795,0.00021915,4]
[365657335,1749822648365,-400.0,0.00021915,4]
[365657337,1749822648375,-270.0,0.00021915,4]
[365657339,1749822648385,-400.0,0.00021915,4]
[365657341,1749822648395,-400.0,0.00021915,4]
[365657343,1749822648405,-590.48,0.00021915,4]
[365657345,1749822648414,-400.0,0.00021915,4]
[365657347,1749822648424,-447.56,0.00021915,4]
[365657349,1749822648433,-460.0,0.00021915,4]
[365657351,1749822648443,-460.0,0.00021915,4]
[365657353,1749822648453,-460.0,0.00021915,4]
[365657355,1749822648462,-1294.62,0.00021915,4]
[365657357,1749822648472,-500.0,0.00021917,4]
[365657359,1749822648481,-500.0,0.00021917,4]
[365657360,1749822648490,-460.0,0.00021917,4]
[365657362,1749822648500,-678.25,0.00021917,4]
[365657364,1749822648510,-460.0,0.00021917,4]
[365657367,1749822648520,-892.67,0.00021917,4]
[365657368,1749822648530,-460.0,0.00021917,4]
[365657370,1749822648540,-886.49,0.00021917,4]
[365657373,1749822648549,-460.0,0.00021917,4]
[365657374,1749822648560,-87.499173,0.00021917,4]
[365659402,1749822742365,274.0,0.00024982,120]
[365659407,1749822976054,902.60163,0.00024978,60]
[365659428,1749823475444,160.954004,0.00013699,2]
[365659429,1749823484389,-484.94189427,0.00019543,2]
[365659430,1749823484411,-115.05810573,0.00020041,2]
[365659438,1749823681010,-160.35747014,0.0001958,2]
[365659439,1749823681031,-139.64252986,0.0001958,2]
[365659483,1749823832626,-160.35747013,0.0001958,2]
[365659488,1749823832640,-162.6384244,0.00019954,2]
[365659492,1749823832653,-65.70213627,0.00020041,2]
[365659496,1749823832664,-240.0442901,0.00020071,2]
[365659502,1749823832677,-371.1576791,0.000209,4]
[365659507,1749823832692,-322.81716753,0.000209,4]
[365659512,1749823832705,-500.0,0.00020964,2]
[365659515,1749823832718,-504.52806032,0.00020995,2]
[365659518,1749823832730,-290.56649574,0.00020995,2]
[365659524,1749823832743,-1000.0,0.00021,21]
[365659527,1749823832754,-1107.95827641,0.00021,2]
[365659537,1749823832794,-2260.73556564,0.00021,2]
[365659541,1749823832809,-4416.53708434,0.00021,2]
[365659543,1749823832821,-693.97484646,0.00021038,4]
[365659545,1749823832833,-519.2447875,0.00021073,2]
[365659547,1749823832844,-718.66,0.00021085,10]
[365659549,1749823832855,-598.89,0.00021085,10]
[365659551,1749823832867,-499.07,0.00021085,10]
[365659552,1749823832879,-415.89,0.00021085,10]
[365659553,1749823832891,-300.0,0.00021094,2]
[365659554,1749823832903,-101.52608653,0.00021095,4]
[365659555,1749823832929,-428.47391347,0.00021095,4]
[365659556,1749823832940,-260.0,0.00021095,4]
[365659557,1749823832952,-157.24965494,0.00021095,4]
[365659558,1749823832963,-14.22643159,0.00021095,4]
[365659572,1749823838986,-460.0,0.00021095,4]
[365659573,1749823838997,-460.0,0.00021095,4]
[365659574,1749823839006,-460.0,0.00021095,4]
[365659575,1749823839016,-460.0,0.00021095,4]
[365659576,1749823839026,-410.0,0.00021095,4]
[365659577,1749823839035,-460.0,0.00021095,4]
[365659578,1749823839045,-350.0,0.00021095,4]
[365659579,1749823839055,-460.0,0.00021095,4]
[365659580,1749823839067,-460.0,0.00021095,4]
[365659581,1749823839078,-388.29222238,0.00021095,4]
[365659582,1749823839088,-440.0,0.00021095,4]
[365659583,1749823839098,-460.0,0.00021095,4]
[365659584,1749823839108,-460.0,0.00021095,4]
[365659586,1749823839118,-234.98638605,0.00021095,4]
[365659587,1749823839127,-460.0,0.00021095,4]
[365659588,1749823839136,-460.0,0.00021095,4]
[365659589,1749823839147,-460.0,0.00021095,4]
[365659590,1749823839158,-420.0,0.00021095,4]
[365659591,1749823839169,-460.0,0.00021095,4]
[365659592,1749823839179,-384.62518768,0.00021095,4]
[365659593,1749823839188,-460.0,0.00021095,4]
[365659594,1749823839198,-460.0,0.00021095,4]
[365659595,1749823839208,-460.0,0.00021095,4]
[365659596,1749823839217,-231.97543053,0.00021095,4]
[365659597,1749823839227,-262.95749568,0.00021095,4]
[365659598,1749823839236,-460.0,0.00021095,4]
[365659599,1749823839247,-440.0,0.00021095,4]
[365659600,1749823839257,-495.12089706,0.00021095,4]
[365659601,1749823839267,-440.0,0.00021095,2]
[365659602,1749823839276,-359.40649766,0.00021095,4]
[365659603,1749823839286,-460.0,0.00021095,4]
[365659604,1749823839295,-460.0,0.00021095,4]
[365659605,1749823839305,-460.0,0.00021095,4]
[365659606,1749823839316,-460.0,0.00021095,4]
[365659607,1749823839326,-452.53709734,0.00021095,4]
[365659608,1749823839335,-460.0,0.00021095,2]
[365659609,1749823839345,-460.0,0.00021095,4]
[365659610,1749823839354,-460.0,0.00021095,4]
[365659611,1749823839364,-440.0,0.00021095,4]
[365659612,1749823839374,-460.0,0.00021095,4]
[365659613,1749823839383,-500.0,0.00021095,2]
[365659614,1749823839393,-500.0,0.00021095,2]